bitfinex-derivatives/quotes_BTCF0:USTF0_20250207
["timestamp","ask_amount","ask_price","bid_price","bid_amount"]
[1738910093375,0.2063972,96877.0,96873.0,0.05404]
[1738910093575,0.2063993,96876.0,96873.0,0.05404]
[1738910094979,0.2133993,96876.0,96873.0,0.05404]
[1738910095669,0.2133993,96876.0,96873.0,0.001]
[1738910095866,0.2133993,96876.0,96874.0,0.05272]
[1738910096879,0.2143993,96876.0,96874.0,0.05272]
[1738910097479,0.2143993,96876.0,96874.0,0.05372]
[1738910099873,0.2143993,96876.0,96874.0,0.2601209]
[1738910099874,0.008,96876.0,96874.0,0.2601209]
[1738910102282,1e-08,96886.0,96885.0,0.2063785]
[1738910102585,1e-08,96886.0,96885.0,0.5671785]
[1738910103788,0.15251737,96912.0,96885.0,0.5671785]
[1738910103789,0.15251737,96912.0,96899.0,0.2063481]
[1738910103985,0.3608,96911.0,96900.0,0.23142]
[1738910104282,0.3608,96911.0,96897.0,0.3608]
[1738910104283,0.12258257,96910.0,96897.0,0.3608]
[1738910104485,0.12258257,96910.0,96885.0,0.3618]
[1738910104486,0.3608,96903.0,96885.0,0.3618]
[1738910104675,0.3608,96893.0,96885.0,0.3618]
[1738910104982,0.2063806,96885.0,96884.0,0.00015481]
[1738910105382,0.5671806,96885.0,96884.0,1e-08]
[1738910105579,0.87676349,96885.0,96884.0,1e-08]
[1738910106585,0.57676349,96885.0,96884.0,1e-08]
[1738910106885,0.87676349,96885.0,96884.0,1e-08]
[1738910107081,0.2064531,96850.0,96837.0,0.36993993]
[1738910107389,0.9280531,96850.0,96837.0,0.36993993]
[1738910107882,0.2064661,96844.0,96837.0,0.36993993]
[1738910108083,0.3608,96839.0,96837.0,0.36993993]
[1738910109183,0.2064787,96838.0,96837.0,0.36993993]
[1738910109483,0.2065068,96825.0,96810.0,0.49295603]
[1738910109682,0.3608,96820.0,96811.0,0.05572]
[1738910109883,0.2065192,96819.0,96810.0,0.49295603]
[1738910110483,0.2065192,96819.0,96804.0,0.3608]
[1738910111377,0.3608,96812.0,96800.0,0.1]
[1738910112797,0.12258257,96811.0,96800.0,0.1]
[1738910112989,0.3608,96812.0,96800.0,0.1]
[1738910113388,0.12258257,96811.0,96800.0,0.1]
[1738910113583,0.32912017,96811.0,96800.0,0.1]
[1738910114580,0.2065422,96809.0,96800.0,0.1]
[1738910115099,0.3608,96803.0,96800.0,0.1]
[1738910115481,0.3608,96803.0,96786.0,0.3608]
[1738910115785,0.32914387,96800.0,96786.0,0.3608]
[1738910115988,0.2065613,96800.0,96786.0,0.3608]
[1738910116383,0.3608,96794.0,96786.0,0.3608]
[1738910116696,0.2065798,96791.0,96769.0,0.05628]
[1738910116989,0.3608,96784.0,96770.0,0.12258257]
[1738910117291,0.12258257,96780.0,96767.0,0.36136]
[1738910117585,0.12258257,96790.0,96779.0,0.3608]
[1738910117781,0.3608,96796.0,96779.0,0.3608]
[1738910118086,0.00015497,96783.0,96781.0,0.2066003]
[1738910118789,0.00015497,96783.0,96779.0,0.3608]
[1738910119087,0.00015497,96783.0,96770.0,0.48338257]
[1738910119088,0.00015497,96783.0,96770.0,0.3608]
[1738910119595,0.00015497,96783.0,96770.0,0.48338257]
[1738910119885,0.00215497,96783.0,96770.0,0.12258257]
[1738910120086,0.00215497,96783.0,96768.0,0.2066273]
[1738910121886,0.00215497,96783.0,96770.0,0.12258257]
[1738910122092,0.00215497,96783.0,96770.0,0.11215682]
[1738910122289,0.00015497,96783.0,96764.0,0.11628]
[1738910122591,0.20775167,96783.0,96764.0,0.11628]
[1738910122785,0.20775167,96783.0,96764.0,0.0592]
[1738910122989,0.20875167,96783.0,96764.0,0.0592]
[1738910123584,0.20875167,96783.0,96750.0,0.12258257]
[1738910123585,0.2066324,96766.0,96748.0,0.36132]
[1738910123887,0.2066365,96765.0,96749.0,0.13543919]
[1738910124189,0.2066365,96765.0,96749.0,0.1256]
[1738910124689,0.2066365,96765.0,96753.0,0.2066596]
[1738910125490,0.2066365,96765.0,96758.0,0.001]
[1738910125896,0.2066365,96765.0,96750.0,0.12258257]
[1738910126085,0.2106365,96765.0,96749.0,0.1256]
[1738910126283,0.3608,96763.0,96749.0,0.1256]
[1738910126986,0.3608,96763.0,96749.0,0.3322675]
[1738910127184,0.3608,96750.0,96722.0,0.00052]
[1738910127383,0.2067712,96701.0,96687.0,0.00063145]
[1738910127589,0.7216,96701.0,96687.0,0.00011145]
[1738910127801,0.7216,96701.0,96672.0,0.1251]
[1738910127802,0.3608,96708.0,96705.0,0.2067611]
[1738910128095,0.00015505,96710.0,96709.0,0.2067541]
[1738910128485,0.3608,96719.0,96702.0,0.3608]
[1738910128694,0.00112001,96742.0,96718.0,0.3608]
[1738910128883,0.3608,96745.0,96733.0,0.2067021]
[1738910129089,0.3608,96745.0,96734.0,0.1251]
[1738910129385,0.36235191,96735.0,96729.0,0.2067105]
[1738910129591,0.36235191,96735.0,96734.0,0.1235]
[1738910129794,0.36235191,96735.0,96722.0,0.00015505]
[1738910129998,0.3608,96723.0,96722.0,0.00015505]
[1738910132394,0.3688,96723.0,96722.0,0.00115505]
[1738910133187,0.206729,96721.0,96700.0,0.1]
[1738910133387,0.3608,96701.0,96700.0,0.1]
[1738910134298,0.3608,96701.0,96670.0,0.20838882]
[1738910134501,0.46800346,96707.0,96676.0,0.2673244]
[1738910134502,0.3608,96683.0,96676.0,0.2673244]
[1738910135098,0.3608,96683.0,96676.0,0.2068244]
[1738910135311,0.3608,96683.0,96671.0,0.1216]
[1738910135597,0.5676107,96683.0,96671.0,0.1216]
[1738910135795,0.5676107,96683.0,96640.0,0.2069014]
[1738910135796,0.2068639,96658.0,96640.0,0.2069014]
[1738910135999,0.3608,96652.0,96640.0,0.2069014]
[1738910136300,0.2068785,96651.0,96631.0,0.33392]
[1738910136492,0.2069,96641.0,96631.0,0.127]
[1738910136893,0.3608,96638.0,96631.0,0.127]
[1738910137198,0.3608,96638.0,96625.0,0.3608]
[1738910137497,0.3608,96638.0,96631.0,0.2069191]
[1738910138700,0.3608,96638.0,96631.0,0.001]
[1738910139302,0.3648,96638.0,96625.0,0.3608]
[1738910139898,0.36770509,96638.0,96631.0,0.001]
[1738910140510,0.36770509,96638.0,96620.0,0.18509706]
[1738910140704,0.36770509,96638.0,96617.0,0.06288]
[1738910140705,0.3608,96628.0,96617.0,0.06288]
[1738910140911,0.36770509,96638.0,96634.0,0.2069134]
[1738910141305,0.36770509,96638.0,96621.0,0.2069419]
[1738910141511,0.36570509,96638.0,96625.0,0.001]
[1738910141808,0.36570509,96638.0,96627.0,0.2069278]
[1738910142116,0.36070509,96638.0,96636.0,0.2069085]
[1738910142305,0.36870509,96638.0,96628.0,0.08249187]
[1738910142508,0.36870509,96638.0,96624.0,0.2069349]
[1738910142702,0.36070509,96638.0,96623.0,0.06428]
[1738910142911,0.36570509,96638.0,96625.0,0.001]
[1738910143514,0.36670509,96638.0,96628.0,0.001]
[1738910144513,0.006,96638.0,96628.0,0.001]
[1738910144713,0.006,96638.0,96636.0,0.2069098]
[1738910144915,0.00015522,96646.0,96640.0,0.2069008]
[1738910145107,0.005,96638.0,96637.0,0.1847]
[1738910145420,0.005,96638.0,96628.0,0.06448]
[1738910145714,0.3608,96632.0,96628.0,0.06448]
[1738910146419,0.3608,96632.0,96629.0,0.2069252]
[1738910147817,0.3608,96641.0,96640.0,0.2069016]
[1738910148011,0.3608,96641.0,96634.0,0.3608]
[1738910148312,0.3608,96641.0,96632.0,0.2069188]
[1738910148812,0.3608,96641.0,96634.0,0.2069136]
[1738910149318,0.3688,96641.0,96636.0,0.2069082]
[1738910149512,0.3688,96641.0,96634.0,0.001]
[1738910149716,0.00015522,96646.0,96645.0,0.206891]
[1738910150210,0.00015522,96646.0,96634.0,0.3608]
[1738910150606,0.00015522,96646.0,96644.0,0.2068927]
[1738910151413,0.00015522,96646.0,96645.0,0.127]
[1738910152017,0.3608,96660.0,96659.0,0.206861]
[1738910152420,0.3608,96660.0,96650.0,0.18509706]
[1738910152719,0.3608,96660.0,96652.0,0.206876]
[1738910152910,0.3608,96660.0,96651.0,0.0652]
[1738910153113,0.3608,96660.0,96650.0,0.18509706]
[1738910153317,0.3608,96651.0,96646.0,0.00015522]
[1738910153706,0.3608,96651.0,96648.0,0.2068827]
[1738910154306,0.2068846,96648.0,96646.0,0.00015522]
[1738910155016,0.3608,96651.0,96646.0,0.00015522]
[1738910155411,0.3608,96651.0,96629.0,0.00963514]
[1738910155412,0.3608,96648.0,96618.0,0.2069467]
[1738910155607,0.3608,96630.0,96619.0,0.2069448]
[1738910155806,0.3608,96630.0,96617.0,0.0648]
[1738910156114,0.3608,96630.0,96624.0,0.2069348]
[1738910158110,0.3608,96630.0,96621.0,0.06472]
[1738910158312,0.3628,96630.0,96628.0,0.2069267]
[1738910160414,0.00015522,96637.0,96635.0,0.2069123]
[1738910160610,0.00015522,96637.0,96636.0,0.1246]
[1738910161619,0.00615522,96637.0,96627.0,0.06396]
[1738910161817,0.00615522,96637.0,96627.0,0.18736633]
[1738910162121,0.00615522,96637.0,96631.0,0.2069193]
[1738910162421,0.00315522,96637.0,96631.0,0.2069193]
[1738910162918,0.23300074,96636.0,96631.0,0.2069193]
[1738910163524,0.23300074,96636.0,96627.0,0.18736633]
[1738910163817,0.09638735,96636.0,96635.0,0.2069124]
[1738910164019,0.2068521,96664.0,96635.0,0.06368]
[1738910164209,0.2068521,96664.0,96652.0,0.206875]
[1738910164412,0.3608,96660.0,96652.0,0.206875]
[1738910164624,0.00108001,96666.0,96651.0,0.0644]
[1738910164828,0.3608,96671.0,96656.0,0.12340633]
[1738910165019,0.3608,96660.0,96651.0,0.128]
[1738910165350,0.27380685,96670.0,96654.0,0.00015522]
[1738910166019,0.2068413,96669.0,96654.0,0.00015522]
[1738910166324,0.3608,96655.0,96654.0,0.00015522]
[1738910166621,0.9284695,96655.0,96654.0,0.00015522]
[1738910167218,0.7216,96655.0,96630.0,0.12340633]
[1738910167420,0.3608,96637.0,96630.0,0.12340633]
[1738910168020,0.3608,96637.0,96631.0,0.06384]
[1738910168724,0.00015522,96644.0,96643.0,0.2068952]
[1738910168925,0.3608,96663.0,96648.0,0.2068824]
[1738910169120,0.3608,96663.0,96650.0,0.12340633]
[1738910169316,0.3608,96655.0,96643.0,0.3608]
[1738910170114,0.3608,96655.0,96639.0,0.00015522]
[1738910170115,0.3608,96647.0,96639.0,0.00015522]
[1738910170320,0.2069016,96640.0,96639.0,0.00015522]
[1738910170817,0.3608,96645.0,96639.0,0.00015522]
[1738910171221,0.3608,96645.0,96639.0,0.06399522]
[1738910171619,0.008,96640.0,96639.0,0.06499522]
[1738910171929,0.008,96640.0,96639.0,0.06491522]
[1738910173123,0.3608,96645.0,96639.0,0.06391522]
[1738910173424,0.3628,96645.0,96640.0,0.2069016]
[1738910173731,0.3608,96645.0,96642.0,0.2068966]
[1738910174028,0.15230871,96650.0,96643.0,0.1254]
[1738910174216,0.3608,96676.0,96649.0,0.3608]
[1738910174217,0.3608,96667.0,96649.0,0.3608]
[1738910174421,0.3608,96667.0,96658.0,0.2068631]
[1738910176418,0.2068012,96687.0,96658.0,0.2068631]
[1738910176625,0.3608,96675.0,96667.0,0.2068436]
[1738910176821,0.3608,96675.0,96668.0,0.24976]
[1738910178031,0.2068316,96673.0,96668.0,0.24976]
[1738910178433,0.2068353,96671.0,96668.0,0.18916]
[1738910179531,0.2068353,96671.0,96668.0,0.19016]
[1738910180027,0.2068395,96670.0,96668.0,0.18916]
[1738910181634,0.3608,96675.0,96668.0,0.18916]
[1738910182922,0.3608,96675.0,96669.0,0.2068396]
[1738910182923,0.009,96670.0,96669.0,0.2068396]
[1738910183327,0.3608,96675.0,96669.0,0.2068396]
[1738910183532,0.3698,96675.0,96669.0,0.2068396]
[1738910184035,0.009,96670.0,96669.0,0.2078396]
[1738910184219,0.009,96670.0,96669.0,0.001]
[1738910184625,0.3698,96675.0,96669.0,0.001]
[1738910186132,0.002,96670.0,96668.0,0.18916]
[1738910186735,0.3628,96675.0,96673.0,0.2068295]
[1738910187133,0.3628,96675.0,96674.0,0.0614]
[1738910187532,0.002,96675.0,96674.0,0.0614]
[1738910187937,0.00015522,96681.0,96677.0,0.2068204]
[1738910188733,0.00015522,96681.0,96680.0,0.206816]
[1738910189437,0.3608,96695.0,96680.0,0.3608]
[1738910189734,0.3608,96695.0,96690.0,0.2067928]
[1738910189937,0.3608,96695.0,96691.0,0.2685108]
[1738910190128,0.3608,96695.0,96692.0,0.1215]
[1738910190437,0.3608,96695.0,96693.0,0.2067864]
[1738910190625,0.00015513,96703.0,96693.0,0.3608]
[1738910190829,0.18257827,96713.0,96702.0,0.3608]
[1738910191138,0.08779324,96713.0,96712.0,0.2067476]
[1738910191439,0.3608,96731.0,96720.0,0.2067284]
[1738910191633,0.3608,96731.0,96726.0,0.2067177]
[1738910193043,0.3608,96731.0,96726.0,0.21743574]
[1738910193537,0.36095513,96736.0,96727.0,0.064]
[1738910193929,0.36095513,96736.0,96721.0,0.0617]
[1738910193930,0.3608,96728.0,96721.0,0.0617]
[1738910194134,0.2067348,96718.0,96717.0,0.00015513]
[1738910194328,0.3608,96722.0,96717.0,0.00015513]
[1738910195140,0.2067348,96718.0,96717.0,0.00015513]
[1738910196435,0.2077348,96718.0,96717.0,0.00115513]
[1738910197335,0.2157348,96718.0,96717.0,0.00115513]
[1738910199134,0.2167348,96718.0,96717.0,0.00115513]
[1738910199536,0.01,96718.0,96717.0,0.00115513]
[1738910200037,0.01,96718.0,96717.0,0.00015513]
[1738910200245,0.009,96718.0,96717.0,0.00115513]
[1738910201646,0.2067343,96719.0,96717.0,0.00015513]
[1738910201947,0.2067343,96719.0,96713.0,0.06148]
[1738910201948,0.2067604,96707.0,96701.0,0.0614]
[1738910202140,0.3608,96702.0,96701.0,0.0614]
[1738910202334,0.3608,96702.0,96684.0,0.07262617]
[1738910202633,0.3608,96685.0,96678.0,0.06136]
[1738910203834,0.3608,96685.0,96682.0,0.00755119]
[1738910204240,0.3618,96685.0,96682.0,0.00755119]
[1738910205035,0.001,96685.0,96682.0,0.00755119]
[1738910205240,0.001,96685.0,96683.0,0.2068077]
[1738910205544,0.00015513,96693.0,96682.0,0.00355119]
[1738910205745,0.00015513,96693.0,96692.0,0.2067904]
[1738910206148,0.006,96685.0,96683.0,0.25145582]
[1738910206342,0.006,96685.0,96683.0,0.0664]
[1738910206642,0.006,96685.0,96684.0,0.06128]
[1738910206842,0.00615513,96693.0,96684.0,0.06128]
[1738910207031,0.00615513,96693.0,96692.0,0.002]
[1738910207732,0.00015513,96693.0,96692.0,0.002]
[1738910209138,0.20694473,96693.0,96683.0,0.25445582]
[1738910209337,0.3608,96688.0,96685.0,0.06124]
[1738910210738,0.3678,96688.0,96685.0,0.06224]
[1738910211140,0.3678,96688.0,96686.0,0.2068032]
[1738910211441,0.00015513,96693.0,96686.0,0.0627]
[1738910211646,0.00015513,96693.0,96687.0,0.2067991]
[1738910211647,0.009,96688.0,96687.0,0.2067991]
[1738910212241,0.00015513,96693.0,96686.0,0.0627]
[1738910212445,0.00015513,96693.0,96692.0,0.2067904]
[1738910212646,0.3608,96716.0,96713.0,0.2067439]
[1738910212844,0.3608,96716.0,96714.0,0.2676629]
[1738910213050,0.15198475,96720.0,96715.0,0.12362]
[1738910213343,0.15198475,96720.0,96719.0,0.2067327]
[1738910213737,0.3623515,96744.0,96729.0,0.2067104]
[1738910213944,0.3623515,96744.0,96730.0,0.18505582]
[1738910214547,0.3623515,96744.0,96733.0,0.2067023]
[1738910214737,0.3623515,96744.0,96730.0,0.18505582]
[1738910214938,0.3623515,96744.0,96737.0,0.2066935]
[1738910215154,0.3623515,96744.0,96738.0,0.06096]
[1738910215543,0.3623515,96744.0,96739.0,0.0618]
[1738910216740,0.3623515,96744.0,96739.0,0.0628]
[1738910217251,0.0015515,96744.0,96740.0,0.3608]
[1738910217741,0.0015515,96744.0,96741.0,0.06088]
[1738910218141,0.0015515,96744.0,96739.0,0.001]
[1738910218340,0.0015515,96744.0,96740.0,0.12644]
[1738910218749,0.0015515,96744.0,96742.0,0.2066828]
[1738910218941,0.3608,96755.0,96743.0,0.0632]
[1738910219147,0.206638,96764.0,96745.0,0.18505582]
[1738910219939,0.3608,96765.0,96745.0,0.18505582]
[1738910220147,0.2066691,96749.0,96746.0,0.061]
[1738910220452,0.3608,96755.0,96743.0,0.002]
[1738910220639,0.3608,96755.0,96747.0,0.06092]
[1738910220955,0.2066607,96753.0,96747.0,0.06092]
[1738910221150,0.3608,96755.0,96747.0,0.06092]
[1738910221348,0.3608,96755.0,96743.0,0.002]
[1738910221547,0.3608,96744.0,96743.0,0.002]
[1738910221749,0.3608,96744.0,96724.0,0.24611311]
[1738910221952,0.5675049,96732.0,96724.0,0.24611311]
[1738910222953,0.5675049,96732.0,96724.0,0.18503311]
[1738910223154,0.5675049,96732.0,96731.0,0.00115513]
[1738910223852,0.5675049,96732.0,96731.0,0.00015513]
[1738910224056,0.5675049,96732.0,96731.0,0.00115513]
[1738910225459,0.5675049,96732.0,96731.0,0.00215513]
[1738910225957,0.6608,96732.0,96724.0,0.18503311]
[1738910226151,0.5675198,96725.0,96724.0,1e-08]
[1738910226351,1.03552326,96725.0,96724.0,1e-08]
[1738910227158,1.03552326,96725.0,96724.0,0.00100001]
[1738910227457,0.5675198,96725.0,96724.0,0.00100001]
[1738910228258,0.5675198,96725.0,96724.0,1e-08]
[1738910228555,0.3608,96725.0,96717.0,0.24712348]
[1738910228864,0.206769,96702.0,96676.0,0.063]
[1738910229057,0.2067932,96691.0,96678.0,0.2068203]
[1738910229247,0.3608,96685.0,96677.0,0.24648121]
[1738910229454,0.2068096,96683.0,96677.0,0.24648121]
[1738910231848,0.3608,96685.0,96677.0,0.24648121]
[1738910232053,0.007,96683.0,96682.0,0.00255119]
[1738910232455,0.016,96683.0,96682.0,0.00355119]
[1738910233060,0.007,96683.0,96682.0,0.00255119]
[1738910233261,0.009,96683.0,96682.0,0.00255119]
[1738910233449,0.016,96683.0,96682.0,0.00355119]
[1738910233752,0.3608,96704.0,96691.0,0.2067925]
[1738910233947,0.3608,96715.0,96697.0,0.3608]
[1738910234146,0.3608,96715.0,96713.0,0.2067438]
[1738910236253,0.3618,96715.0,96713.0,0.2067438]
[1738910236961,0.3708,96715.0,96714.0,0.0645]
[1738910238464,0.3708,96715.0,96713.0,0.06136]
[1738910238653,0.2067433,96714.0,96713.0,0.001]
[1738910238849,0.2067479,96712.0,96706.0,0.06036]
[1738910239857,0.3698,96715.0,96707.0,0.2067575]
[1738910240063,0.3698,96715.0,96704.0,0.06039514]
[1738910240373,0.3698,96715.0,96713.0,0.2067434]
[1738910240565,0.3698,96715.0,96704.0,0.06039514]
[1738910240751,0.009,96715.0,96704.0,0.06039514]
[1738910241856,0.00170695,96724.0,96712.0,0.3608]
[1738910242063,0.00170695,96724.0,96722.0,0.2067244]
[1738910242257,0.3608,96748.0,96724.0,0.2067202]
[1738910242456,0.3608,96740.0,96724.0,0.2067202]
[1738910242658,0.3608,96732.0,96725.0,0.06044]
[1738910245266,0.3688,96732.0,96725.0,0.06144]
[1738910246170,0.2067143,96728.0,96725.0,0.001]
[1738910246965,0.3698,96732.0,96725.0,0.001]
[1738910248163,0.001,96728.0,96725.0,0.001]
[1738910248357,0.01,96728.0,96725.0,0.001]
[1738910248558,0.01,96728.0,96726.0,0.2067177]
[1738910249157,0.00015514,96738.0,96735.0,0.2066969]
[1738910249367,0.00015514,96738.0,96737.0,0.2066942]
[1738910251165,0.00015514,96738.0,96735.0,0.00982055]
[1738910251374,0.00015514,96738.0,96734.0,0.2067005]
[1738910251670,0.00015514,96738.0,96736.0,0.2066963]
[1738910252169,0.36343115,96768.0,96748.0,0.2066687]
[1738910252362,0.36343115,96768.0,96733.0,0.3608]
[1738910252363,0.36235114,96768.0,96750.0,0.2066659]
[1738910252562,0.36235114,96768.0,96749.0,0.1871]
[1738910252767,0.1522138,96767.0,96753.0,0.2066585]
[1738910252965,0.1522138,96767.0,96757.0,0.2066506]
[1738910253266,0.009,96766.0,96757.0,0.2066506]
[1738910254370,0.3608,96758.0,96752.0,0.00015506]
[1738910254568,0.20666,96753.0,96752.0,0.00015506]
[1738910254771,0.2066686,96749.0,96748.0,0.001]
[1738910254973,0.2066686,96749.0,96734.0,0.1289]
[1738910254974,0.3608,96749.0,96734.0,0.1289]
[1738910255163,0.3608,96735.0,96721.0,0.2067282]
[1738910255378,0.5675192,96726.0,96710.0,0.00974907]
[1738910255573,0.5675192,96726.0,96711.0,0.01587346]
[1738910255767,0.5675192,96726.0,96712.0,0.01598251]
[1738910256066,0.3608,96726.0,96710.0,0.18505582]
[1738910256271,0.00015506,96728.0,96722.0,0.2067245]
[1738910256874,0.00015506,96728.0,96709.0,0.00015506]
[1738910256875,0.00015506,96728.0,96726.0,0.2067163]
[1738910257174,0.00015506,96728.0,96727.0,0.0646]
[1738910257473,0.00015506,96728.0,96727.0,0.1252]
[1738910257871,0.00015506,96728.0,96727.0,0.14135503]
[1738910258073,0.00015506,96728.0,96727.0,0.1252]
[1738910258373,0.006,96728.0,96727.0,0.14135517]
[1738910258668,0.01022644,96766.0,96727.0,0.14135517]
[1738910258669,0.4223,96764.0,96752.0,0.20666]
[1738910258868,0.3608,96764.0,96753.0,0.0616]
[1738910259269,0.3608,96754.0,96738.0,0.3608]
[1738910259473,0.2066683,96750.0,96739.0,0.07775221]
[1738910259673,0.3608,96743.0,96739.0,0.0616]
[1738910259977,0.5674586,96754.0,96739.0,0.0616]
[1738910260565,0.5674586,96754.0,96753.0,0.001]
[1738910261777,0.5674586,96754.0,96753.0,0.002]
[1738910262172,0.5694586,96754.0,96753.0,0.001]
[1738910262972,0.5674586,96754.0,96753.0,0.002]
[1738910263472,0.5704586,96754.0,96753.0,0.002]
[1738910266379,0.5714586,96754.0,96753.0,0.002]
[1738910266771,0.5724586,96754.0,96753.0,0.002]
[1738910268178,0.5734586,96754.0,96753.0,0.002]
[1738910268881,0.5714586,96754.0,96753.0,0.002]
[1738910269774,0.5754586,96754.0,96753.0,0.002]
[1738910270879,0.5674586,96754.0,96753.0,0.001]
[1738910271072,0.5764586,96754.0,96753.0,0.002]
[1738910271481,0.5784586,96754.0,96753.0,0.002]
[1738910271979,0.5784586,96754.0,96753.0,7.373e-05]
[1738910272585,0.5774586,96754.0,96753.0,0.00107373]
[1738910273185,0.5694586,96754.0,96753.0,7.373e-05]
[1738910274187,0.3628,96754.0,96753.0,7.373e-05]
[1738910274386,0.3688,96754.0,96753.0,0.0634]
[1738910274686,0.3718,96754.0,96753.0,0.1305]
[1738910274987,0.00010172,96756.0,96754.0,0.2066579]
[1738910275183,0.00010172,96756.0,96755.0,0.01612522]
[1738910275988,0.1522138,96766.0,96755.0,0.01612522]
[1738910276176,0.1522138,96766.0,96761.0,0.3608]
[1738910276373,0.1522138,96766.0,96765.0,0.2066344]
[1738910276572,0.1522138,96766.0,96765.0,0.22275962]
[1738910277189,0.1612138,96766.0,96765.0,0.22275962]
[1738910277974,0.1612138,96766.0,96765.0,0.01612522]
[1738910278379,0.1612138,96766.0,96765.0,0.01712522]
[1738910278789,0.002,96766.0,96765.0,0.01812522]
[1738910279288,0.00155114,96768.0,96765.0,0.001]
[1738910279491,0.002,96766.0,96765.0,0.002]
[1738910279884,0.00155114,96768.0,96765.0,0.001]
[1738910280083,0.002,96766.0,96765.0,0.002]
[1738910280284,0.002,96766.0,96765.0,0.01793929]
[1738910280483,0.00155114,96768.0,96765.0,0.01693929]
[1738910280691,0.00155114,96768.0,96766.0,0.01593929]
[1738910280891,0.00155114,96768.0,96767.0,0.01593929]
[1738910281282,0.00155114,96768.0,96765.0,0.002]
[1738910281588,0.00155114,96768.0,96765.0,0.001]
[1738910281780,0.00155114,96768.0,96765.0,0.002]
[1738910281977,0.00155114,96768.0,96767.0,0.2066301]
[1738910282383,0.00155114,96768.0,96767.0,0.22267576]
[1738910283987,0.00155114,96768.0,96767.0,0.22367576]
[1738910285092,0.00155114,96768.0,96767.0,0.01704566]
[1738910285407,0.00155114,96768.0,96756.0,0.00015506]
[1738910285408,0.4695546,96768.0,96756.0,0.00015506]
[1738910285581,0.2066515,96757.0,96756.0,0.00015506]
[1738910286687,0.3608,96761.0,96756.0,0.00015506]
[1738910286990,0.3608,96761.0,96760.0,0.2066451]
[1738910287189,0.00155114,96768.0,96767.0,0.2066301]
[1738910287696,0.001,96768.0,96767.0,0.58357967]
[1738910287904,0.69110684,96800.0,96767.0,0.38669144]
[1738910287905,0.1,96800.0,96767.0,0.38669144]
[1738910288093,0.10116,96800.0,96792.0,0.206576]
[1738910288391,0.1,96800.0,96792.0,0.206576]
[1738910288596,0.1,96800.0,96793.0,0.01614575]
[1738910288796,0.1,96800.0,96790.0,0.1314]
[1738910289003,0.1,96800.0,96791.0,0.016146]
[1738910289191,0.102,96800.0,96792.0,0.001]
[1738910289397,0.105,96800.0,96792.0,0.001]
[1738910290301,0.2065746,96793.0,96792.0,0.001]
[1738910290693,0.3608,96794.0,96790.0,0.001]
[1738910291006,0.2065795,96791.0,96790.0,0.001]
[1738910291196,0.2065874,96787.0,96786.0,0.00015497]
[1738910291502,0.5673874,96787.0,96786.0,0.00015497]
[1738910292894,0.5673874,96787.0,96786.0,0.00115497]
[1738910293405,0.5703874,96787.0,96786.0,0.00215497]
[1738910293899,0.3638,96787.0,96786.0,0.00215497]
[1738910294298,0.3638,96787.0,96786.0,0.00115497]
[1738910294496,0.3648,96787.0,96786.0,0.00215497]
[1738910295694,0.3648,96787.0,96786.0,0.22489172]
[1738910296097,0.004,96787.0,96786.0,0.22489172]
[1738910297005,0.3608,96794.0,96793.0,0.2065746]
[1738910297203,4.212e-05,96796.0,96793.0,0.2065746]
[1738910297401,4.212e-05,96796.0,96794.0,0.3443711]
[1738910298203,0.1,96800.0,96798.0,0.2065628]
[1738910298593,0.1,96800.0,96799.0,0.01614349]
[1738910299398,0.1,96800.0,96794.0,0.1388]
[1738910299800,0.3065611,96800.0,96794.0,0.1388]
[1738910300603,0.3065611,96800.0,96794.0,0.1378]
[1738910301307,0.152578,96825.0,96817.0,0.2065234]
[1738910301611,0.152578,96825.0,96824.0,0.2065085]
[1738910301811,0.152578,96825.0,96818.0,0.1394]
[1738910302003,0.2065119,96823.0,96818.0,0.1394]
[1738910302303,0.152578,96825.0,96818.0,0.0697]
[1738910302701,0.2065213,96818.0,96817.0,0.0596]
[1738910302900,0.5673213,96818.0,96817.0,0.0596]
[1738910303101,0.5673213,96818.0,96817.0,0.0576]
[1738910304203,0.2065301,96814.0,96808.0,0.00015497]
[1738910304408,0.3608,96809.0,96808.0,0.00015497]
[1738910306899,0.3608,96809.0,96808.0,0.00115497]
[1738910309211,0.5746,96809.0,96808.0,0.00115497]
[1738910310508,0.3608,96809.0,96808.0,0.00115497]
[1738910310901,0.3608,96809.0,96808.0,0.06955497]
[1738910313815,0.3608,96818.0,96808.0,0.06955497]
[1738910314014,0.3608,96818.0,96816.0,0.2065237]
[1738910314720,0.3608,96818.0,96808.0,0.39800456]
[1738910314917,0.3608,96818.0,96809.0,0.01614193]
[1738910315111,0.3608,96818.0,96810.0,0.01614193]
[1738910315313,0.3608,96818.0,96811.0,0.01614193]
[1738910315512,0.5673213,96818.0,96808.0,0.19246216]
[1738910315717,0.3608,96818.0,96816.0,0.001]
[1738910316015,0.3608,96819.0,96816.0,0.001]
[1738910316624,0.3608,96819.0,96816.0,0.002]
[1738910317211,0.3608,96819.0,96816.0,0.001]
[1738910320319,0.3608,96819.0,96817.0,0.206523]
[1738910321614,0.3608,96819.0,96818.0,0.01614174]
[1738910322116,0.152578,96836.0,96832.0,0.2064897]
[1738910322422,0.152578,96836.0,96833.0,0.08684174]
[1738910322614,0.152578,96836.0,96835.0,0.206485]
[1738910323917,0.152578,96836.0,96835.0,0.22241408]
[1738910324210,0.3590609,96836.0,96835.0,0.001]
[1738910324915,0.3590609,96836.0,96822.0,0.12706]
[1738910325117,0.3590609,96836.0,96835.0,0.001]
[1738910325610,0.3590609,96836.0,96835.0,0.002]
[1738910325826,0.2064829,96836.0,96835.0,0.002]
[1738910327623,0.2064829,96836.0,96835.0,0.001]
[1738910327818,0.3608,96839.0,96822.0,0.0707]
[1738910328018,0.3608,96823.0,96822.0,0.0707]
[1738910328729,0.00108001,96839.0,96838.0,0.2064786]
[1738910328922,0.3608,96847.0,96846.0,0.2064616]
[1738910330128,0.3608,96847.0,96846.0,0.22258088]
[1738910330528,0.3608,96847.0,96846.0,0.22358088]
[1738910331115,0.18309361,96851.0,96846.0,0.01711928]
[1738910331321,0.18309361,96851.0,96848.0,0.2064552]